[Event "Titled Tuesday Blitz April 18 Early 2023"]
[White "Roebers, Jan"]
[Black "Chincholimath, Halsagar"]
[WhiteFideId "1007815"]
[BlackFideId "5022487"]
[WhiteElo "2188"]
[BlackElo "1737"]
[Result "0-1"]
[Round "06"]
[TimeControl "180+2"]
[Date "2023.04.18"]
[WhiteClock "0:00:55"]
[BlackClock "0:00:18"]

1. c4 {[%clk 0:03:00]}  e5 {[%clk 0:02:59]} 2. b3 {[%clk 0:03:00]}  Nc6 {[%clk 0:02:59]} 3. Bb2 {[%clk 0:03:00]}  f5 {[%clk 0:02:59]} 4. e3 {[%clk 0:03:00]}  Nf6 {[%clk 0:02:59]} 5. d4 {[%clk 0:03:00]}  exd4 {[%clk 0:02:51]} 6. exd4 {[%clk 0:02:59]}  Be7 {[%clk 0:02:49]} 7. Nf3 {[%clk 0:02:59]}  d6 {[%clk 0:02:44]} 8. d5 {[%clk 0:02:56]}  Nb8 {[%clk 0:02:43]} 9. Bd3 {[%clk 0:02:55]}  O-O {[%clk 0:02:42]} 10. O-O {[%clk 0:02:55]}  Ne4 {[%clk 0:02:41]} 11. Nbd2 {[%clk 0:02:50]}  Bf6 {[%clk 0:02:39]} 12. Bxf6 {[%clk 0:02:45]}  Nxf6 {[%clk 0:02:39]} 13. Qc2 {[%clk 0:02:39]}  g6 {[%clk 0:02:37]} 14. Nd4 {[%clk 0:02:38]}  c6 {[%clk 0:02:33]} 15. dxc6 {[%clk 0:02:33]}  Nxc6 {[%clk 0:02:33]} 16. Nxc6 {[%clk 0:02:32]}  bxc6 {[%clk 0:02:32]} 17. Nf3 {[%clk 0:02:28]}  d5 {[%clk 0:02:20]} 18. Rfe1 {[%clk 0:02:28]}  Qd6 {[%clk 0:02:03]} 19. Rad1 {[%clk 0:02:24]}  Ba6 {[%clk 0:02:00]} 20. c5 {[%clk 0:02:16]}  Bxd3 {[%clk 0:01:54]} 21. Rxd3 {[%clk 0:02:14]}  Qf4 {[%clk 0:01:49]} 22. Qd2 {[%clk 0:02:04]}  Qc7 {[%clk 0:01:34]} 23. Nd4 {[%clk 0:02:02]}  Ne4 {[%clk 0:01:32]} 24. Qc2 {[%clk 0:02:01]}  Rae8 {[%clk 0:01:27]} 25. f3 {[%clk 0:02:01]}  Ng5 {[%clk 0:00:54]} 26. Rde3 {[%clk 0:01:59]}  Rxe3 {[%clk 0:00:49]} 27. Rxe3 {[%clk 0:01:58]}  Qf4 {[%clk 0:00:48]} 28. Qd2 {[%clk 0:01:56]}  Qh4 {[%clk 0:00:37]} 29. g3 {[%clk 0:01:50]}  Nh3+ {[%clk 0:00:34]} 30. Kg2 {[%clk 0:01:49]}  Qh6 {[%clk 0:00:34]} 31. Re2 {[%clk 0:01:21]}  Ng5 {[%clk 0:00:33]} 32. h4 {[%clk 0:01:17]}  Nf7 {[%clk 0:00:33]} 33. Qxh6 {[%clk 0:01:16]}  Nxh6 {[%clk 0:00:34]} 34. Nxc6 {[%clk 0:01:15]}  f4 {[%clk 0:00:32]} 35. Ne7+ {[%clk 0:01:11]}  Kf7 {[%clk 0:00:31]} 36. c6 {[%clk 0:01:11]}  Nf5 {[%clk 0:00:23]} 37. c7 {[%clk 0:01:10]}  Nxe7 {[%clk 0:00:21]} 38. Rc2 {[%clk 0:01:01]}  Rc8 {[%clk 0:00:21]} 39. gxf4 {[%clk 0:00:59]}  d4 {[%clk 0:00:20]} 40. Rc4 {[%clk 0:00:58]}  d3 {[%clk 0:00:20]} 41. Rd4 {[%clk 0:00:58]}  Rxc7 {[%clk 0:00:19]} 42. Rxd3 {[%clk 0:00:58]}  Rc2+ {[%clk 0:00:19]} 43. Kg3 {[%clk 0:00:59]}  Rxa2 {[%clk 0:00:20]} 44. h5 {[%clk 0:00:59]}  Kf6 {[%clk 0:00:19]} 45. hxg6 {[%clk 0:00:58]}  hxg6 {[%clk 0:00:19]} 46. Rd7 {[%clk 0:00:57]}  Nf5+ {[%clk 0:00:19]} 47. Kg4 {[%clk 0:00:55]}  Rg2+ {[%clk 0:00:18]} 48. Kh3 {[%clk 0:00:55]}  Rg3+ {[%clk 0:00:18]} 49. Kh2 {[%clk 0:00:55]}  Rxf3 {[%clk 0:00:18]} 50. Rxa7 {[%clk 0:00:55]}  Rxb3 {[%clk 0:00:18]} 51. Ra6+ {[%clk 0:00:55]}  Kg7 {[%clk 0:00:18]} 0-1


[Site "https://www.chess.com"]

[Event "Titled Tuesday Blitz April 18 Early 2023"]
[White "Drygalov, Andrey"]
[Black "Andreikin, Dmitry"]
[WhiteFideId "24171735"]
[BlackFideId "4158814"]
[WhiteElo "2466"]
[BlackElo "2736"]
[Result "0-1"]
[Round "07"]
[TimeControl "180+2"]
[Date "2023.04.18"]
[WhiteClock "0:00:09"]
[BlackClock "0:01:04"]

1. e4 {[%clk 0:03:00]}  c5 {[%clk 0:02:54]} 2. Nf3 {[%clk 0:03:00]}  Nc6 {[%clk 0:02:53]} 3. Bb5 {[%clk 0:02:59]}  Nf6 {[%clk 0:02:51]} 4. Bxc6 {[%clk 0:02:53]}  dxc6 {[%clk 0:02:51]} 5. d3 {[%clk 0:02:53]}  Bg4 {[%clk 0:02:51]} 6. h3 {[%clk 0:02:51]}  Bh5 {[%clk 0:02:49]} 7. g4 {[%clk 0:02:50]}  Bg6 {[%clk 0:02:49]} 8. Qe2 {[%clk 0:02:44]}  Nd7 {[%clk 0:02:47]} 9. e5 {[%clk 0:02:38]}  e6 {[%clk 0:02:45]} 10. Nc3 {[%clk 0:02:38]}  h5 {[%clk 0:02:35]} 11. Rg1 {[%clk 0:02:31]}  hxg4 {[%clk 0:02:35]} 12. hxg4 {[%clk 0:02:31]}  c4 {[%clk 0:02:36]} 13. dxc4 {[%clk 0:02:14]}  Qa5 {[%clk 0:02:32]} 14. Bd2 {[%clk 0:02:12]}  Bb4 {[%clk 0:02:24]} 15. O-O-O {[%clk 0:01:47]}  Bxc3 {[%clk 0:01:46]} 16. Bxc3 {[%clk 0:01:45]}  Qxa2 {[%clk 0:01:47]} 17. Qe3 {[%clk 0:00:41]}  O-O-O {[%clk 0:01:28]} 18. Rd6 {[%clk 0:00:18]}  Nb6 {[%clk 0:01:23]} 19. Qc5 {[%clk 0:00:16]}  Nxc4 {[%clk 0:01:16]} 20. Kd1 {[%clk 0:00:09]}  Qb1+ {[%clk 0:01:05]} 21. Ke2 {[%clk 0:00:09]}  Qxc2+ {[%clk 0:01:06]} 22. Kf1 {[%clk 0:00:09]}  Nxd6 {[%clk 0:01:04]} 0-1


[Site "https://www.chess.com"]

[Event "Titled Tuesday Blitz April 18 Early 2023"]
[White "Rodshtein, Maxim"]
[Black "Durarbayli, Vasif"]
[WhiteFideId "2806851"]
[BlackFideId "13402935"]
[WhiteElo "2555"]
[BlackElo "2551"]
[Result "1-0"]
[Round "07"]
[TimeControl "180+2"]
[Date "2023.04.18"]
[WhiteClock "0:00:15"]
[BlackClock "0:00:01"]

1. b3 {[%clk 0:03:00]}  d5 {[%clk 0:02:56]} 2. Bb2 {[%clk 0:03:00]}  c5 {[%clk 0:02:56]} 3. e4 {[%clk 0:03:00]}  dxe4 {[%clk 0:02:49]} 4. Nc3 {[%clk 0:02:53]}  Nf6 {[%clk 0:02:48]} 5. Bb5+ {[%clk 0:02:50]}  Nc6 {[%clk 0:02:27]} 6. Bxc6+ {[%clk 0:02:43]}  bxc6 {[%clk 0:02:28]} 7. Qe2 {[%clk 0:02:44]}  Bf5 {[%clk 0:02:27]} 8. O-O-O {[%clk 0:02:42]}  e6 {[%clk 0:02:16]} 9. h3 {[%clk 0:02:41]}  a5 {[%clk 0:02:00]} 10. g4 {[%clk 0:02:38]}  Bg6 {[%clk 0:02:00]} 11. a4 {[%clk 0:02:18]}  Qb6 {[%clk 0:01:38]} 12. f3 {[%clk 0:02:08]}  exf3 {[%clk 0:01:35]} 13. Nxf3 {[%clk 0:02:09]}  Rb8 {[%clk 0:01:36]} 14. d3 {[%clk 0:02:07]}  c4 {[%clk 0:01:16]} 15. dxc4 {[%clk 0:02:06]}  Bc5 {[%clk 0:01:12]} 16. Ne5 {[%clk 0:01:55]}  Be3+ {[%clk 0:01:11]} 17. Rd2 {[%clk 0:01:47]}  Rd8 {[%clk 0:00:59]} 18. Nb1 {[%clk 0:01:34]}  Ne4 {[%clk 0:00:43]} 19. Rd1 {[%clk 0:01:34]}  Nxd2 {[%clk 0:00:39]} 20. Nxd2 {[%clk 0:01:33]}  O-O {[%clk 0:00:33]} 21. Nxc6 {[%clk 0:01:27]}  Rxd2 {[%clk 0:00:21]} 22. Ne7+ {[%clk 0:01:27]}  Kh8 {[%clk 0:00:21]} 23. Rxd2 {[%clk 0:01:24]}  Rd8 {[%clk 0:00:16]} 24. Nxg6+ {[%clk 0:01:17]}  hxg6 {[%clk 0:00:14]} 25. Bc3 {[%clk 0:01:18]}  Bxd2+ {[%clk 0:00:08]} 26. Bxd2 {[%clk 0:01:19]}  Qd4 {[%clk 0:00:08]} 27. c3 {[%clk 0:01:15]}  Qb6 {[%clk 0:00:05]} 28. Kb2 {[%clk 0:00:57]}  Kg8 {[%clk 0:00:03]} 29. Be3 {[%clk 0:00:56]}  Qd6 {[%clk 0:00:03]} 30. Bd4 {[%clk 0:00:56]}  f6 {[%clk 0:00:04]} 31. Qe4 {[%clk 0:00:34]}  e5 {[%clk 0:00:04]} 32. c5 {[%clk 0:00:33]}  Qd7 {[%clk 0:00:02]} 33. Be3 {[%clk 0:00:27]}  Kh7 {[%clk 0:00:02]} 34. c6 {[%clk 0:00:24]}  Qc7 {[%clk 0:00:02]} 35. b4 {[%clk 0:00:24]}  axb4 {[%clk 0:00:02]} 36. cxb4 {[%clk 0:00:24]}  Ra8 {[%clk 0:00:01]} 37. b5 {[%clk 0:00:24]}  Qa5 {[%clk 0:00:02]} 38. Kb3 {[%clk 0:00:24]}  Rd8 {[%clk 0:00:02]} 39. Qc2 {[%clk 0:00:22]}  f5 {[%clk 0:00:01]} 40. gxf5 {[%clk 0:00:22]}  gxf5 {[%clk 0:00:02]} 41. Qxf5+ {[%clk 0:00:22]}  Kh8 {[%clk 0:00:02]} 42. Qc2 {[%clk 0:00:20]}  Qe1 {[%clk 0:00:02]} 43. Bc5 {[%clk 0:00:19]}  Qg3+ {[%clk 0:00:01]} 44. Kb4 {[%clk 0:00:19]}  Qf4+ {[%clk 0:00:01]} 45. Qc4 {[%clk 0:00:19]}  e4 {[%clk 0:00:01]} 46. b6 {[%clk 0:00:18]}  Rc8 {[%clk 0:00:01]} 47. Kb5 {[%clk 0:00:16]}  Qe5 {[%clk 0:00:02]} 48. b7 {[%clk 0:00:16]}  Rb8 {[%clk 0:00:01]} 49. Kb6 {[%clk 0:00:16]}  e3 {[%clk 0:00:01]} 50. Qh4+ {[%clk 0:00:15]}  Kg8 {[%clk 0:00:01]} 51. Qc4+ {[%clk 0:00:15]}  Kh7 {[%clk 0:00:01]} 52. c7 {[%clk 0:00:15]} 1-0


[Site "https://www.chess.com"]

[Event "Titled Tuesday Blitz April 18 Early 2023"]
[White "Fier, Alexandr"]
[Black "Chigaev, Maksim"]
[WhiteFideId "2107139"]
[BlackFideId "4108116"]
[WhiteElo "2610"]
[BlackElo "2547"]
[Result "1-0"]
[Round "07"]
[TimeControl "180+2"]
[Date "2023.04.18"]
[WhiteClock "0:00:41"]
[BlackClock "0:00:01"]

1. d4 {[%clk 0:03:00]}  Nf6 {[%clk 0:02:59]} 2. Bg5 {[%clk 0:03:00]}  g6 {[%clk 0:02:57]} 3. Nf3 {[%clk 0:02:57]}  Bg7 {[%clk 0:02:57]} 4. Nbd2 {[%clk 0:02:57]}  O-O {[%clk 0:02:54]} 5. e4 {[%clk 0:02:56]}  d6 {[%clk 0:02:54]} 6. Be2 {[%clk 0:02:55]}  Nc6 {[%clk 0:02:54]} 7. c3 {[%clk 0:02:54]}  Qe8 {[%clk 0:02:53]} 8. O-O {[%clk 0:02:52]}  e5 {[%clk 0:02:53]} 9. dxe5 {[%clk 0:02:53]}  Nxe5 {[%clk 0:02:54]} 10. Re1 {[%clk 0:02:41]}  h6 {[%clk 0:02:44]} 11. Bh4 {[%clk 0:02:38]}  Bd7 {[%clk 0:02:39]} 12. Bg3 {[%clk 0:02:38]}  Nh5 {[%clk 0:02:33]} 13. Nc4 {[%clk 0:02:23]}  Nxg3 {[%clk 0:02:22]} 14. hxg3 {[%clk 0:02:24]}  Rd8 {[%clk 0:02:17]} 15. Ncxe5 {[%clk 0:02:23]}  dxe5 {[%clk 0:02:18]} 16. Qb3 {[%clk 0:02:18]}  Bc6 {[%clk 0:02:15]} 17. Bc4 {[%clk 0:02:17]}  Kh7 {[%clk 0:02:11]} 18. Bd5 {[%clk 0:02:15]}  Bxd5 {[%clk 0:02:03]} 19. exd5 {[%clk 0:02:15]}  b6 {[%clk 0:02:04]} 20. Qc4 {[%clk 0:02:04]}  Qe7 {[%clk 0:01:08]} 21. Nxe5 {[%clk 0:01:59]}  Bxe5 {[%clk 0:01:08]} 22. f4 {[%clk 0:01:59]}  f6 {[%clk 0:01:03]} 23. fxe5 {[%clk 0:01:50]}  fxe5 {[%clk 0:01:04]} 24. Re2 {[%clk 0:01:45]}  Qd6 {[%clk 0:00:49]} 25. Rae1 {[%clk 0:01:44]}  Rde8 {[%clk 0:00:48]} 26. a4 {[%clk 0:01:39]}  Re7 {[%clk 0:00:43]} 27. b4 {[%clk 0:01:35]}  h5 {[%clk 0:00:38]} 28. Re4 {[%clk 0:01:34]}  Rf5 {[%clk 0:00:36]} 29. Kh2 {[%clk 0:01:33]}  Kg7 {[%clk 0:00:32]} 30. Qb5 {[%clk 0:01:32]}  Ref7 {[%clk 0:00:26]} 31. a5 {[%clk 0:01:25]}  g5 {[%clk 0:00:19]} 32. a6 {[%clk 0:01:24]}  Kh6 {[%clk 0:00:12]} 33. Qd3 {[%clk 0:01:19]}  Kg7 {[%clk 0:00:09]} 34. c4 {[%clk 0:01:16]}  Qf6 {[%clk 0:00:03]} 35. Qe3 {[%clk 0:01:15]}  Re7 {[%clk 0:00:02]} 36. c5 {[%clk 0:01:14]}  bxc5 {[%clk 0:00:03]} 37. bxc5 {[%clk 0:01:15]}  Qxa6 {[%clk 0:00:03]} 38. Qc3 {[%clk 0:01:08]}  Qf6 {[%clk 0:00:03]} 39. Rd1 {[%clk 0:01:07]}  h4 {[%clk 0:00:03]} 40. d6 {[%clk 0:01:07]}  cxd6 {[%clk 0:00:03]} 41. Rxd6 {[%clk 0:01:05]}  hxg3+ {[%clk 0:00:04]} 42. Qxg3 {[%clk 0:01:05]}  Re6 {[%clk 0:00:04]} 43. Rd7+ {[%clk 0:01:02]}  Re7 {[%clk 0:00:05]} 44. Rd6 {[%clk 0:01:01]}  Re6 {[%clk 0:00:05]} 45. Qd3 {[%clk 0:01:00]}  Qh6+ {[%clk 0:00:04]} 46. Kg1 {[%clk 0:01:00]}  Rf4 {[%clk 0:00:02]} 47. Rd7+ {[%clk 0:00:57]}  Kf6 {[%clk 0:00:03]} 48. Rxa7 {[%clk 0:00:54]}  Qf8 {[%clk 0:00:03]} 49. Rc4 {[%clk 0:00:44]}  Qc8 {[%clk 0:00:01]} 50. Qh7 {[%clk 0:00:42]}  e4 {[%clk 0:00:01]} 51. Qg7+ {[%clk 0:00:42]}  Kf5 {[%clk 0:00:01]} 52. Rf7+ {[%clk 0:00:41]}  Kg4 {[%clk 0:00:02]} 53. Qh7 {[%clk 0:00:41]}  Rg6 {[%clk 0:00:01]} 54. Qh3# {[%clk 0:00:41]} 1-0


[Site "https://www.chess.com"]

[Event "Titled Tuesday Blitz April 18 Early 2023"]
[White "Bocharov, Dmitry"]
[Black "Demchenko, Anton"]
[WhiteFideId "4138716"]
[BlackFideId "4160258"]
[WhiteElo "2469"]
[BlackElo "2545"]
[Result "1-0"]
[Round "07"]
[TimeControl "180+2"]
[Date "2023.04.18"]
[WhiteClock "0:00:19"]
[BlackClock "0:00:02"]

1. d4 {[%clk 0:03:00]}  Nf6 {[%clk 0:02:58]} 2. c4 {[%clk 0:03:01]}  d6 {[%clk 0:02:58]} 3. Nf3 {[%clk 0:02:59]}  Nc6 {[%clk 0:02:59]} 4. d5 {[%clk 0:02:55]}  Ne5 {[%clk 0:02:58]} 5. Nc3 {[%clk 0:02:47]}  e6 {[%clk 0:02:58]} 6. e4 {[%clk 0:02:33]}  Be7 {[%clk 0:02:48]} 7. Be2 {[%clk 0:02:33]}  O-O {[%clk 0:02:46]} 8. O-O {[%clk 0:02:33]}  Nxf3+ {[%clk 0:02:47]} 9. Bxf3 {[%clk 0:02:32]}  e5 {[%clk 0:02:48]} 10. Be3 {[%clk 0:02:30]}  h6 {[%clk 0:02:41]} 11. b4 {[%clk 0:02:28]}  Nh7 {[%clk 0:02:37]} 12. c5 {[%clk 0:02:28]}  Bg5 {[%clk 0:02:38]} 13. Qd2 {[%clk 0:02:28]}  f5 {[%clk 0:02:30]} 14. exf5 {[%clk 0:02:28]}  Bxf5 {[%clk 0:02:30]} 15. Rac1 {[%clk 0:02:25]}  Bxe3 {[%clk 0:02:23]} 16. Qxe3 {[%clk 0:02:26]}  a6 {[%clk 0:02:12]} 17. a4 {[%clk 0:02:12]}  Qh4 {[%clk 0:01:54]} 18. Be4 {[%clk 0:02:01]}  Ng5 {[%clk 0:01:52]} 19. f3 {[%clk 0:01:54]}  Bxe4 {[%clk 0:01:38]} 20. fxe4 {[%clk 0:01:47]}  Rf4 {[%clk 0:01:33]} 21. g3 {[%clk 0:01:42]}  Qg4 {[%clk 0:01:08]} 22. Kh1 {[%clk 0:01:31]}  Qh3 {[%clk 0:01:08]} 23. Qe2 {[%clk 0:01:16]}  Rff8 {[%clk 0:00:53]} 24. a5 {[%clk 0:01:09]}  Qd7 {[%clk 0:00:24]} 25. Kg2 {[%clk 0:00:51]}  Qh3+ {[%clk 0:00:22]} 26. Kg1 {[%clk 0:00:51]}  Qd7 {[%clk 0:00:22]} 27. Rxf8+ {[%clk 0:00:39]}  Rxf8 {[%clk 0:00:22]} 28. Rf1 {[%clk 0:00:39]}  Rxf1+ {[%clk 0:00:20]} 29. Kxf1 {[%clk 0:00:39]}  Qh3+ {[%clk 0:00:03]} 30. Kg1 {[%clk 0:00:39]}  Qc8 {[%clk 0:00:03]} 31. h4 {[%clk 0:00:33]}  Nh7 {[%clk 0:00:03]} 32. Qf3 {[%clk 0:00:33]}  Nf6 {[%clk 0:00:03]} 33. Kg2 {[%clk 0:00:28]}  Qb8 {[%clk 0:00:02]} 34. Qf5 {[%clk 0:00:25]}  Kh8 {[%clk 0:00:03]} 35. g4 {[%clk 0:00:21]}  Qd8 {[%clk 0:00:02]} 36. Kh3 {[%clk 0:00:19]}  Ng8 {[%clk 0:00:01]} 37. g5 {[%clk 0:00:18]}  Ne7 {[%clk 0:00:01]} 38. Qf7 {[%clk 0:00:18]}  hxg5 {[%clk 0:00:02]} 39. hxg5 {[%clk 0:00:19]}  Qd7+ {[%clk 0:00:01]} 40. Kh4 {[%clk 0:00:16]}  Qd8 {[%clk 0:00:02]} 41. Kg4 {[%clk 0:00:16]}  Ng8 {[%clk 0:00:02]} 42. Qh5+ {[%clk 0:00:15]}  Nh6+ {[%clk 0:00:02]} 43. gxh6 {[%clk 0:00:16]}  Qd7+ {[%clk 0:00:02]} 44. Qf5 {[%clk 0:00:16]}  Qe7 {[%clk 0:00:03]} 45. hxg7+ {[%clk 0:00:16]}  Qxg7+ {[%clk 0:00:03]} 46. Qg5 {[%clk 0:00:17]}  Qd7+ {[%clk 0:00:03]} 47. Kg3 {[%clk 0:00:17]}  Qe8 {[%clk 0:00:02]} 48. Qh4+ {[%clk 0:00:17]}  Kg8 {[%clk 0:00:01]} 49. Qg4+ {[%clk 0:00:18]}  Kh8 {[%clk 0:00:02]} 50. cxd6 {[%clk 0:00:18]}  cxd6 {[%clk 0:00:02]} 51. Nd1 {[%clk 0:00:19]}  Qa4 {[%clk 0:00:02]} 52. Ne3 {[%clk 0:00:18]}  Qxb4 {[%clk 0:00:02]} 53. Qh5+ {[%clk 0:00:19]}  Kg8 {[%clk 0:00:02]} 54. Qg6+ {[%clk 0:00:19]}  Kh8 {[%clk 0:00:02]} 55. Nf5 {[%clk 0:00:18]}  Qe1+ {[%clk 0:00:02]} 56. Kg4 {[%clk 0:00:19]}  Qg1+ {[%clk 0:00:02]} 57. Kh5 {[%clk 0:00:18]}  Qh2+ {[%clk 0:00:01]} 58. Kg5 {[%clk 0:00:19]}  Qg2+ {[%clk 0:00:01]} 59. Kf6 {[%clk 0:00:20]}  Qxg6+ {[%clk 0:00:01]} 60. Kxg6 {[%clk 0:00:20]}  Kg8 {[%clk 0:00:02]} 61. Nxd6 {[%clk 0:00:19]} 1-0


[Site "https://www.chess.com"]

[Event "Titled Tuesday Blitz April 18 Early 2023"]
[White "Mahdavi, Reza"]
[Black "Sadhwani, Raunak"]
[WhiteFideId "12595926"]
[BlackFideId "35093487"]
[WhiteElo "2357"]
[BlackElo "2631"]
[Result "0-1"]
[Round "07"]
[TimeControl "180+2"]
[Date "2023.04.18"]
[WhiteClock "0:00:02"]
[BlackClock "0:00:05"]

1. Nf3 {[%clk 0:02:53]}  g6 {[%clk 0:03:00]} 2. g3 {[%clk 0:02:52]}  Bg7 {[%clk 0:03:01]} 3. d4 {[%clk 0:02:53]}  b5 {[%clk 0:02:56]} 4. Bg2 {[%clk 0:02:52]}  Bb7 {[%clk 0:02:56]} 5. b3 {[%clk 0:02:47]}  Nf6 {[%clk 0:02:52]} 6. Bb2 {[%clk 0:02:43]}  O-O {[%clk 0:02:52]} 7. O-O {[%clk 0:02:41]}  d6 {[%clk 0:02:53]} 8. Nbd2 {[%clk 0:02:41]}  Nbd7 {[%clk 0:02:48]} 9. c4 {[%clk 0:02:40]}  bxc4 {[%clk 0:02:49]} 10. Nxc4 {[%clk 0:02:41]}  a5 {[%clk 0:02:49]} 11. Rc1 {[%clk 0:02:28]}  c5 {[%clk 0:02:37]} 12. dxc5 {[%clk 0:02:24]}  Nxc5 {[%clk 0:02:38]} 13. Bd4 {[%clk 0:02:09]}  Ne6 {[%clk 0:02:22]} 14. Bb6 {[%clk 0:02:05]}  Qb8 {[%clk 0:02:21]} 15. Be3 {[%clk 0:01:15]}  Ra6 {[%clk 0:01:45]} 16. Qd2 {[%clk 0:00:48]}  Ne4 {[%clk 0:01:34]} 17. Qe1 {[%clk 0:00:42]}  Rc8 {[%clk 0:01:18]} 18. Qd1 {[%clk 0:00:29]}  a4 {[%clk 0:00:58]} 19. Nb6 {[%clk 0:00:21]}  Rxc1 {[%clk 0:00:53]} 20. Qxc1 {[%clk 0:00:22]}  Nc3 {[%clk 0:00:50]} 21. Qd2 {[%clk 0:00:15]}  axb3 {[%clk 0:00:48]} 22. axb3 {[%clk 0:00:16]}  Bc6 {[%clk 0:00:43]} 23. Rc1 {[%clk 0:00:08]}  Ne4 {[%clk 0:00:30]} 24. Qc2 {[%clk 0:00:08]}  N4c5 {[%clk 0:00:23]} 25. b4 {[%clk 0:00:04]}  Rxb6 {[%clk 0:00:19]} 26. bxc5 {[%clk 0:00:05]}  Rb2 {[%clk 0:00:20]} 27. Qd1 {[%clk 0:00:05]}  dxc5 {[%clk 0:00:17]} 28. Bxc5 {[%clk 0:00:06]}  Nxc5 {[%clk 0:00:11]} 29. Rxc5 {[%clk 0:00:07]}  Qb6 {[%clk 0:00:05]} 30. Rc1 {[%clk 0:00:05]}  Bf6 {[%clk 0:00:05]} 31. Rc2 {[%clk 0:00:03]}  Rb1 {[%clk 0:00:04]} 32. Rc1 {[%clk 0:00:03]}  Rb2 {[%clk 0:00:05]} 33. Kf1 {[%clk 0:00:02]}  Kg7 {[%clk 0:00:04]} 34. Rc2 {[%clk 0:00:02]}  Rb1 {[%clk 0:00:03]} 35. Rc1 {[%clk 0:00:03]}  Rb2 {[%clk 0:00:04]} 36. Rc2 {[%clk 0:00:03]}  Rb4 {[%clk 0:00:05]} 37. Rc1 {[%clk 0:00:02]}  Ba4 {[%clk 0:00:05]} 38. Qe1 {[%clk 0:00:03]}  Rb2 {[%clk 0:00:05]} 39. Kg1 {[%clk 0:00:02]}  Bb5 {[%clk 0:00:05]} 40. Bf1 {[%clk 0:00:03]}  Ba6 {[%clk 0:00:03]} 41. Rd1 {[%clk 0:00:02]}  h5 {[%clk 0:00:03]} 42. h4 {[%clk 0:00:02]}  Bb7 {[%clk 0:00:03]} 43. Kg2 {[%clk 0:00:02]}  e5 {[%clk 0:00:03]} 44. Rd2 {[%clk 0:00:02]}  e4 {[%clk 0:00:03]} 45. Rxb2 {[%clk 0:00:01]}  exf3+ {[%clk 0:00:03]} 46. exf3 {[%clk 0:00:02]}  Qxb2 {[%clk 0:00:04]} 47. Bd3 {[%clk 0:00:02]}  Qb6 {[%clk 0:00:04]} 48. Be4 {[%clk 0:00:03]}  Qe6 {[%clk 0:00:04]} 49. Qb1 {[%clk 0:00:03]}  Bd5 {[%clk 0:00:03]} 50. Qd3 {[%clk 0:00:02]}  Bc4 {[%clk 0:00:03]} 51. Qc2 {[%clk 0:00:03]}  Qa6 {[%clk 0:00:04]} 52. Kh2 {[%clk 0:00:02]}  Be6 {[%clk 0:00:04]} 53. Qd2 {[%clk 0:00:02]}  Qb6 {[%clk 0:00:04]} 54. Qc2 {[%clk 0:00:03]}  Qd4 {[%clk 0:00:04]} 55. Kg2 {[%clk 0:00:03]}  Qe5 {[%clk 0:00:04]} 56. Bd3 {[%clk 0:00:02]}  Qb2 {[%clk 0:00:05]} 57. Qd1 {[%clk 0:00:02]}  Bd4 {[%clk 0:00:05]} 58. Qe1 {[%clk 0:00:02]}  Qc3 {[%clk 0:00:05]} 59. Qe2 {[%clk 0:00:03]}  Bd5 {[%clk 0:00:05]} 60. Be4 {[%clk 0:00:03]}  Bc4 {[%clk 0:00:06]} 61. Qd1 {[%clk 0:00:02]}  Qb2 {[%clk 0:00:05]} 62. Qe1 {[%clk 0:00:01]}  Ba6 {[%clk 0:00:05]} 63. Qd1 {[%clk 0:00:01]}  Qxf2+ {[%clk 0:00:04]} 64. Kh3 {[%clk 0:00:02]}  Bf1+ {[%clk 0:00:05]} 0-1


[Site "https://www.chess.com"]

[Event "Titled Tuesday Blitz April 18 Early 2023"]
[White "Bryant, John Daniel"]
[Black "Kushko, Dmitriy"]
[WhiteFideId "2031280"]
[BlackFideId "14162261"]
[WhiteElo "2455"]
[BlackElo "2230"]
[Result "0-1"]
[Round "07"]
[TimeControl "180+2"]
[Date "2023.04.18"]
[WhiteClock "0:00:02"]
[BlackClock "0:00:39"]

1. e4 {[%clk 0:03:00]}  g6 {[%clk 0:03:00]} 2. d4 {[%clk 0:02:59]}  Bg7 {[%clk 0:03:01]} 3. Nf3 {[%clk 0:02:56]}  d6 {[%clk 0:03:01]} 4. Bc4 {[%clk 0:02:55]}  Nc6 {[%clk 0:03:00]} 5. h3 {[%clk 0:02:28]}  Nf6 {[%clk 0:02:54]} 6. Nc3 {[%clk 0:02:22]}  O-O {[%clk 0:02:52]} 7. O-O {[%clk 0:02:19]}  Nxe4 {[%clk 0:02:50]} 8. Bxf7+ {[%clk 0:01:59]}  Rxf7 {[%clk 0:02:51]} 9. Nxe4 {[%clk 0:01:59]}  d5 {[%clk 0:02:51]} 10. Neg5 {[%clk 0:01:52]}  Rf8 {[%clk 0:02:51]} 11. Re1 {[%clk 0:01:46]}  Qd6 {[%clk 0:02:51]} 12. Qe2 {[%clk 0:00:07]}  Nxd4 {[%clk 0:02:35]} 13. Nxd4 {[%clk 0:00:08]}  Bxd4 {[%clk 0:02:35]} 14. Nf3 {[%clk 0:00:08]}  Bf6 {[%clk 0:02:31]} 15. Bh6 {[%clk 0:00:07]}  Re8 {[%clk 0:02:30]} 16. Ne5 {[%clk 0:00:06]}  Bf5 {[%clk 0:02:24]} 17. f4 {[%clk 0:00:04]}  d4 {[%clk 0:02:21]} 18. Rad1 {[%clk 0:00:02]}  Qd5 {[%clk 0:02:16]} 19. b3 {[%clk 0:00:01]}  c5 {[%clk 0:02:15]} 20. Qf2 {[%clk 0:00:01]}  Rad8 {[%clk 0:02:13]} 21. Rd2 {[%clk 0:00:01]}  Rd6 {[%clk 0:01:58]} 22. g4 {[%clk 0:00:02]}  Bc8 {[%clk 0:01:56]} 23. Rde2 {[%clk 0:00:02]}  b6 {[%clk 0:01:55]} 24. g5 {[%clk 0:00:02]}  Bb7 {[%clk 0:01:55]} 25. Kh2 {[%clk 0:00:01]}  Bh8 {[%clk 0:01:34]} 26. Ng4 {[%clk 0:00:01]}  d3 {[%clk 0:01:18]} 27. cxd3 {[%clk 0:00:01]}  Bd4 {[%clk 0:01:19]} 28. Qg3 {[%clk 0:00:01]}  Bc3 {[%clk 0:01:02]} 29. Nf6+ {[%clk 0:00:01]}  Bxf6 {[%clk 0:00:43]} 30. gxf6 {[%clk 0:00:01]}  Rxf6 {[%clk 0:00:44]} 31. Rxe7 {[%clk 0:00:02]}  Rxe7 {[%clk 0:00:43]} 32. f5 {[%clk 0:00:03]}  Re2+ {[%clk 0:00:39]} 33. Rxe2 {[%clk 0:00:02]}  Qh1# {[%clk 0:00:39]} 0-1


[Site "https://www.chess.com"]